fUST/lending_fUST_20260531
["ID","MTS","AMOUNT","RATE_DAILY","PERIOD"]
[423550643,1780211441000,-3585.36740699,0.00011875,2]
[423550653,1780211441000,-149.9970643,0.00012054,2]
[423550645,1780211441000,-135.68812766,0.00012,2]
[423550646,1780211441000,-6332.39815017,0.00012,2]
[423550637,1780211441000,-230.70800202,0.0001178,2]
[423550635,1780211441000,-589.82,0.0001178,2]
[423550636,1780211441000,-954.59,0.0001178,2]
[423550640,1780211441000,-67364.68254743,0.00011875,2]
[423550634,1780211441000,-562.06043544,0.0001178,2]
[423550639,1780211441000,-151.0,0.000118,2]
[423550642,1780211441000,-1609.06079025,0.00011875,2]
[423550641,1780211441000,-490.88188947,0.00011875,2]
[423550644,1780211441000,-85634.17734606,0.00011875,2]
[423550689,1780211443000,-152.0,0.00012667,7]
[423550687,1780211443000,-152.0,0.00012649,7]
[423550685,1780211443000,-152.0,0.00012631,7]
[423550686,1780211443000,-152.0,0.00012649,7]
[423550683,1780211443000,-242.0,0.00012603,3]
[423550684,1780211443000,-152.0,0.00012631,7]
[423550682,1780211443000,-954.59,0.00012602,2]
[423550679,1780211443000,-185.0,0.00012525,2]
[423550678,1780211443000,-1836.0,0.00012518,2]
[423550680,1780211443000,-444.0,0.00012525,2]
[423550681,1780211443000,-299.03848901,0.00012541,2]
[423550690,1780211443000,-3629.0,0.00012682,2]
[423550666,1780211443000,-300.0,0.000122,2]
[423550676,1780211443000,-326.1476792,0.00012465,2]
[423550674,1780211443000,-500.0,0.00012464,2]
[423550672,1780211443000,-689.57066223,0.00012391,2]
[423550673,1780211443000,-500.0,0.00012464,2]
[423550671,1780211443000,-310.42933777,0.00012391,2]
[423550670,1780211443000,-954.59,0.00012328,2]
[423550669,1780211443000,-323.64976275,0.000122,2]
[423550668,1780211443000,-407.64,0.000122,2]
[423550691,1780211443000,-152.0,0.00012689,7]
[423550667,1780211443000,-48011.38165589,0.000122,2]
[423550665,1780211443000,-8866.07543023,0.000122,2]
[423550675,1780211443000,-328.12,0.00012464,2]
[423550692,1780211443000,-152.0,0.00012715,7]
[423550677,1780211443000,-326.1476792,0.00012465,2]
[423550694,1780211443000,-954.59,0.00012876,2]
[423550688,1780211443000,-152.0,0.00012667,7]
[423550718,1780211443000,-1312.40132142,0.00013464,2]
[423550716,1780211443000,-180.292081,0.00013425,2]
[423550717,1780211443000,-1662.12899509,0.00013464,2]
[423550715,1780211443000,-172.996961,0.00013424,2]
[423550714,1780211443000,-172.99696,0.00013424,2]
[423550713,1780211443000,-954.59,0.00013424,2]
[423550711,1780211443000,-221.84106917,0.000133,2]
[423550712,1780211443000,-221.84106917,0.000134,2]
[423550710,1780211443000,-203.133258,0.00013287,2]
[423550709,1780211443000,-456.8688945,0.00013287,2]
[423550707,1780211443000,-326.1476792,0.00013287,2]
[423550708,1780211443000,-164.9213929,0.00013287,2]
[423550719,1780211443000,-382.91828592,0.00013464,2]
[423550706,1780211443000,-151.4650752,0.00013287,2]
[423550705,1780211443000,-326.1476792,0.00013287,2]
[423550695,1780211443000,-453.42847065,0.00012953,2]
[423550697,1780211443000,-221.84106917,0.00013,2]
[423550698,1780211443000,-221.84106917,0.000131,2]
[423550699,1780211443000,-221.63,0.000131,2]
[423550696,1780211443000,-514.10376088,0.00012963,2]
[423550701,1780211443000,-760.43971377,0.00013195,2]
[423550704,1780211443000,-456.8688945,0.00013261,2]
[423550702,1780211443000,-514.10376088,0.00013246,2]
[423550703,1780211443000,-456.8688945,0.00013261,2]
[423550700,1780211443000,-954.59,0.0001315,2]
[423550693,1780211443000,-514.10376088,0.00012802,2]
[423550739,1780211446000,-38000.0,0.00013698,3]
[423550755,1780211446000,-868.2,0.00013698,2]
[423550748,1780211446000,-868.2,0.00013698,2]
[423550749,1780211446000,-868.2,0.00013698,2]
[423550750,1780211446000,-868.2,0.00013698,2]
[423550752,1780211446000,-868.2,0.00013698,2]
[423550753,1780211446000,-522.49537943,0.00013698,2]
[423550754,1780211446000,-345.70462057,0.00013698,2]
[423550759,1780211446000,-954.59,0.00013698,2]
[423550751,1780211446000,-868.2,0.00013698,2]
[423550763,1780211446000,-868.2,0.00013698,2]
[423550757,1780211446000,-868.2,0.00013698,2]
[423550756,1780211446000,-868.2,0.00013698,2]
[423550761,1780211446000,-868.2,0.00013698,2]
[423550760,1780211446000,-868.2,0.00013698,2]
[423550762,1780211446000,-868.2,0.00013698,2]
[423550765,1780211446000,-868.2,0.00013698,2]
[423550764,1780211446000,-868.2,0.00013698,2]
[423550767,1780211446000,-868.2,0.00013698,2]
[423550768,1780211446000,-868.28543502,0.00013698,2]
[423550769,1780211446000,-625.09,0.00013698,2]
[423550745,1780211446000,-868.2,0.00013698,2]
[423550758,1780211446000,-868.2,0.00013698,2]
[423550742,1780211446000,-1266.05897989,0.00013698,3]
[423550731,1780211446000,-1899.83256176,0.0001368,3]
[423550741,1780211446000,-505.63870615,0.00013698,2]
[423550766,1780211446000,-868.2,0.00013698,2]
[423550721,1780211446000,-483.90748233,0.00013464,2]
[423550720,1780211446000,-1093.92499483,0.00013464,2]
[423550724,1780211446000,-221.84106917,0.000135,2]
[423550722,1780211446000,-61.49163836,0.00013464,2]
[423550723,1780211446000,-5000.0,0.00013464,2]
[423550727,1780211446000,-642.5110363,0.0001363,2]
[423550725,1780211446000,-4905.13510584,0.0001351,2]
[423550726,1780211446000,-108.99874392,0.0001351,2]
[423550728,1780211446000,-506.95980918,0.00013195,2]
[423550729,1780211446000,-357.4889637,0.0001363,2]
[423550730,1780211446000,-244.0,0.0001363,2]
[423550732,1780211446000,-2281.0709563,0.0001368,3]
[423550733,1780211446000,-2181.02011853,0.0001368,3]
[423550734,1780211446000,-21160.61150848,0.0001368,3]
[423550735,1780211446000,-10477.46485493,0.0001368,3]
[423550737,1780211446000,-171.18016248,0.0001369,2]
[423550736,1780211446000,-38000.0,0.00013689,3]
[423550738,1780211446000,-30601.77335347,0.00013698,3]
[423550746,1780211446000,-868.2,0.00013698,2]
[423550743,1780211446000,-868.2,0.00013698,2]
[423550740,1780211446000,-501.2603501,0.00013698,2]
[423550744,1780211446000,-868.2,0.00013698,2]
[423550747,1780211446000,-868.2,0.00013698,2]
[423550770,1780211446000,-625.09,0.00013698,2]
[423550823,1780211446000,-151.0,0.00013699,2]
[423550772,1780211446000,-625.09,0.00013698,2]
[423550801,1780211446000,-191.408643,0.00013699,2]
[423550798,1780211446000,-151.0,0.00013699,2]
[423550802,1780211446000,-151.0,0.00013699,2]
[423550804,1780211446000,-151.0,0.00013699,2]
[423550805,1780211446000,-151.0,0.00013699,2]
[423550803,1780211446000,-151.0,0.00013699,2]
[423550807,1780211446000,-151.0,0.00013699,2]
[423550806,1780211446000,-151.0,0.00013699,2]
[423550808,1780211446000,-151.0,0.00013699,2]
[423550809,1780211446000,-151.0,0.00013699,2]
[423550810,1780211446000,-151.0,0.00013699,2]
[423550812,1780211446000,-151.0,0.00013699,2]
[423550813,1780211446000,-151.0,0.00013699,2]
[423550814,1780211446000,-151.0,0.00013699,2]
[423550817,1780211446000,-151.0,0.00013699,2]
[423550815,1780211446000,-151.0,0.00013699,2]
[423550816,1780211446000,-151.0,0.00013699,2]
[423550818,1780211446000,-151.0,0.00013699,2]
[423550820,1780211446000,-151.0,0.00013699,2]
[423550819,1780211446000,-157.8,0.00013699,2]
[423550821,1780211446000,-151.0,0.00013699,2]
[423550822,1780211446000,-151.0,0.00013699,2]
[423550771,1780211446000,-625.09,0.00013698,2]
[423550800,1780211446000,-151.0,0.00013699,2]
[423550799,1780211446000,-151.0,0.00013699,2]
[423550811,1780211446000,-151.0,0.00013699,2]
[423550796,1780211446000,-180.41099272,0.00013699,2]
[423550773,1780211446000,-625.09,0.00013698,2]
[423550797,1780211446000,-151.0,0.00013699,2]
[423550774,1780211446000,-625.09,0.00013698,2]
[423550777,1780211446000,-625.09,0.00013698,2]
[423550776,1780211446000,-625.09,0.00013698,2]
[423550778,1780211446000,-625.09,0.00013698,2]
[423550780,1780211446000,-625.09,0.00013698,2]
[423550779,1780211446000,-625.09,0.00013698,2]
[423550781,1780211446000,-625.09,0.00013698,2]
[423550782,1780211446000,-625.09,0.00013698,2]
[423550783,1780211446000,-625.09,0.00013698,2]
[423550775,1780211446000,-625.09,0.00013698,2]
[423550788,1780211446000,-625.09,0.00013698,2]
[423550794,1780211446000,-500.75531987,0.00013698,2]
[423550785,1780211446000,-625.09,0.00013698,2]
[423550793,1780211446000,-500.0,0.00013698,2]
[423550789,1780211446000,-625.09,0.00013698,2]
[423550790,1780211446000,-625.09,0.00013698,2]
[423550795,1780211446000,-500.0,0.00013699,2]
[423550792,1780211446000,-625.10586825,0.00013698,2]
[423550787,1780211446000,-625.09,0.00013698,2]
[423550791,1780211446000,-625.09,0.00013698,2]
[423550784,1780211446000,-625.09,0.00013698,2]
[423550786,1780211446000,-625.09,0.00013698,2]
[423550863,1780211447000,-411.842438,0.00013699,2]
[423550869,1780211447000,-158.19497,0.00013699,2]
[423550864,1780211447000,-411.842438,0.00013699,2]
[423550866,1780211447000,-158.19497,0.00013699,2]
[423550867,1780211447000,-158.19497,0.00013699,2]
[423550854,1780211447000,-411.842438,0.00013699,2]
[423550859,1780211447000,-411.842438,0.00013699,2]
[423550860,1780211447000,-411.842438,0.00013699,2]
[423550862,1780211447000,-411.842438,0.00013699,2]
[423550861,1780211447000,-411.842438,0.00013699,2]
[423550858,1780211447000,-411.842438,0.00013699,2]
[423550870,1780211447000,-158.19497,0.00013699,2]
[423550871,1780211447000,-158.19497,0.00013699,2]
[423550868,1780211447000,-158.19497,0.00013699,2]
[423550884,1780211447000,-287.415613,0.00013699,2]
[423550873,1780211447000,-158.19497,0.00013699,2]
[423550872,1780211447000,-158.19497,0.00013699,2]
[423550875,1780211447000,-158.19497,0.00013699,2]
[423550874,1780211447000,-287.415613,0.00013699,2]
[423550876,1780211447000,-287.415613,0.00013699,2]
[423550877,1780211447000,-158.19497,0.00013699,2]
[423550878,1780211447000,-287.415613,0.00013699,2]
[423550879,1780211447000,-221.878297,0.00013699,2]
[423550880,1780211447000,-158.19497,0.00013699,2]
[423550883,1780211447000,-287.415613,0.00013699,2]
[423550881,1780211447000,-221.878297,0.00013699,2]
[423550882,1780211447000,-221.878297,0.00013699,2]
[423550855,1780211447000,-411.842438,0.00013699,2]
[423550865,1780211447000,-158.19497,0.00013699,2]
[423550856,1780211447000,-411.842438,0.00013699,2]
[423550827,1780211447000,-151.0,0.00013699,2]
[423550852,1780211447000,-299.83279,0.00013699,2]
[423550886,1780211447000,-221.878297,0.00013699,2]
[423550829,1780211447000,-151.0,0.00013699,2]
[423550826,1780211447000,-151.429227,0.00013699,2]
[423550830,1780211447000,-151.0,0.00013699,2]
[423550824,1780211447000,-221.1406,0.00013699,2]
[423550825,1780211447000,-1000.0,0.00013699,2]
[423550828,1780211447000,-151.0,0.00013699,2]
[423550831,1780211447000,-151.0,0.00013699,2]
[423550832,1780211447000,-151.0,0.00013699,2]
[423550833,1780211447000,-261.688742,0.00013699,2]
[423550834,1780211447000,-151.0,0.00013699,2]
[423550836,1780211447000,-151.0,0.00013699,2]
[423550842,1780211447000,-299.83279,0.00013699,2]
[423550843,1780211447000,-299.83279,0.00013699,2]
[423550837,1780211447000,-151.0,0.00013699,2]
[423550835,1780211447000,-151.0,0.00013699,2]
[423550840,1780211447000,-266.076483,0.00013699,2]
[423550841,1780211447000,-299.83279,0.00013699,2]
[423550839,1780211447000,-151.0,0.00013699,2]
[423550838,1780211447000,-151.0,0.00013699,2]
[423550844,1780211447000,-299.83279,0.00013699,2]
[423550846,1780211447000,-299.83279,0.00013699,2]
[423550845,1780211447000,-299.83279,0.00013699,2]
[423550848,1780211447000,-299.83279,0.00013699,2]
[423550847,1780211447000,-299.83279,0.00013699,2]
[423550849,1780211447000,-299.83279,0.00013699,2]
[423550850,1780211447000,-299.83279,0.00013699,2]
[423550851,1780211447000,-299.83279,0.00013699,2]
[423550853,1780211447000,-411.842438,0.00013699,2]
[423550857,1780211447000,-411.842438,0.00013699,2]
[423550885,1780211447000,-287.415613,0.00013699,2]
[423550890,1780211447000,-287.415613,0.00013699,2]
[423550889,1780211447000,-287.415613,0.00013699,2]
[423550921,1780211447000,-151.0,0.00013699,2]
[423550924,1780211447000,-151.0,0.00013699,2]
[423550923,1780211447000,-507.530791,0.00013699,2]
[423550926,1780211447000,-151.0,0.00013699,2]
[423550936,1780211447000,-507.530791,0.00013699,2]
[423550925,1780211447000,-507.530791,0.00013699,2]
[423550927,1780211447000,-507.530791,0.00013699,2]
[423550929,1780211447000,-153.299159,0.00013699,2]
[423550930,1780211447000,-507.530791,0.00013699,2]
[423550928,1780211447000,-151.0,0.00013699,2]
[423550933,1780211447000,-151.0,0.00013699,2]
[423550934,1780211447000,-507.530791,0.00013699,2]
[423550932,1780211447000,-507.530791,0.00013699,2]
[423550931,1780211447000,-151.0,0.00013699,2]
[423550935,1780211447000,-151.0,0.00013699,2]
[423550937,1780211447000,-507.530791,0.00013699,2]
[423550939,1780211447000,-151.644867,0.00013699,2]
[423550938,1780211447000,-507.530791,0.00013699,2]
[423550942,1780211447000,-151.0,0.00013699,2]
[423550940,1780211447000,-151.0,0.00013699,2]
[423550941,1780211447000,-151.0,0.00013699,2]
[423550944,1780211447000,-151.0,0.00013699,2]
[423550946,1780211447000,-151.0,0.00013699,2]
[423550943,1780211447000,-151.0,0.00013699,2]
[423550945,1780211447000,-151.0,0.00013699,2]
[423550949,1780211447000,-151.0,0.00013699,2]
[423550948,1780211447000,-2000.0,0.00013699,7]
[423550951,1780211447000,-171.27178282,0.00013705,2]
[423550887,1780211447000,-221.878297,0.00013699,2]
[423550922,1780211447000,-151.0,0.00013699,2]
[423550916,1780211447000,-507.530791,0.00013699,2]
[423550947,1780211447000,-244.0,0.00013699,3]
[423550918,1780211447000,-507.530791,0.00013699,2]
[423550891,1780211447000,-287.415613,0.00013699,2]
[423550913,1780211447000,-195.620798,0.00013699,2]
[423550894,1780211447000,-221.878297,0.00013699,2]
[423550892,1780211447000,-221.878297,0.00013699,2]
[423550950,1780211447000,-151.0,0.00013699,2]
[423550888,1780211447000,-221.878297,0.00013699,2]
[423550893,1780211447000,-221.878297,0.00013699,2]
[423550896,1780211447000,-287.415613,0.00013699,2]
[423550897,1780211447000,-287.415613,0.00013699,2]
[423550895,1780211447000,-287.415613,0.00013699,2]
[423550899,1780211447000,-221.878297,0.00013699,2]
[423550900,1780211447000,-221.878297,0.00013699,2]
[423550902,1780211447000,-151.0,0.00013699,2]
[423550901,1780211447000,-151.0,0.00013699,2]
[423550898,1780211447000,-221.878297,0.00013699,2]
[423550906,1780211447000,-151.0,0.00013699,2]
[423550919,1780211447000,-151.0,0.00013699,2]
[423550903,1780211447000,-151.0,0.00013699,2]
[423550920,1780211447000,-151.0,0.00013699,2]
[423550915,1780211447000,-151.0,0.00013699,2]
[423550912,1780211447000,-275.897821,0.00013699,2]
[423550914,1780211447000,-507.530791,0.00013699,2]
[423550917,1780211447000,-151.0,0.00013699,2]
[423550910,1780211447000,-151.0,0.00013699,2]
[423550909,1780211447000,-151.0,0.00013699,2]
[423550907,1780211447000,-151.0,0.00013699,2]
[423550908,1780211447000,-151.0,0.00013699,2]
[423550905,1780211447000,-152.053869,0.00013699,2]
[423550904,1780211447000,-151.0,0.00013699,2]
[423550911,1780211447000,-151.0,0.00013699,2]
[423550989,1780211448000,-177.81261898,0.00013828,2]
[423551000,1780211448000,-172.07715744,0.00013828,2]
[423550990,1780211448000,-220.90459526,0.00013828,2]
[423550985,1780211448000,-214.68460461,0.00013828,2]
[423550984,1780211448000,-151.43072577,0.00013828,2]
[423550981,1780211448000,-161.31203132,0.00013772,2]
[423550986,1780211448000,-261.03342085,0.00013828,2]
[423550992,1780211448000,-263.3161336,0.00013828,2]
[423550983,1780211448000,-169.96610309,0.00013772,2]
[423550988,1780211448000,-158.55888978,0.00013828,2]
[423550982,1780211448000,-172.36303685,0.00013772,2]
[423550997,1780211448000,-276.75197549,0.00013828,2]
[423550996,1780211448000,-199.49417582,0.00013828,2]
[423550993,1780211448000,-226.68645076,0.00013828,2]
[423550994,1780211448000,-165.42745861,0.00013828,2]
[423550995,1780211448000,-152.74176848,0.00013828,2]
[423550998,1780211448000,-216.04261238,0.00013828,2]
[423550999,1780211448000,-164.28581848,0.00013828,2]
[423551001,1780211448000,-219.63903204,0.00013828,2]
[423551002,1780211448000,-150.73296243,0.00013828,2]
[423551004,1780211448000,-280.2632297,0.00013828,2]
[423551003,1780211448000,-164.79111081,0.00013828,2]
[423550980,1780211448000,-181.35405327,0.00013772,2]
[423551005,1780211448000,-162.61888764,0.00013828,2]
[423550991,1780211448000,-286.18072291,0.00013828,2]
[423550978,1780211448000,-151.86129844,0.00013711,2]
[423550964,1780211448000,-165.04979082,0.00013705,2]
[423550979,1780211448000,-182.05890107,0.00013772,2]
[423551010,1780211448000,-162.91469588,0.00013832,2]
[423550961,1780211448000,-1212.60131674,0.00013705,2]
[423550952,1780211448000,-176.53952645,0.00013705,2]
[423550956,1780211448000,-523.40718701,0.00013705,2]
[423550957,1780211448000,-177.40657941,0.00013705,2]
[423550960,1780211448000,-156.74674864,0.00013705,2]
[423550955,1780211448000,-177.38839871,0.00013705,2]
[423550958,1780211448000,-198.9130213,0.00013705,2]
[423550953,1780211448000,-202.98477772,0.00013705,2]
[423550959,1780211448000,-792.87063511,0.00013705,2]
[423550954,1780211448000,-160.64195433,0.00013705,2]
[423550962,1780211448000,-183.62784536,0.00013705,2]
[423550974,1780211448000,-162.95649297,0.00013705,2]
[423550963,1780211448000,-335.85541585,0.00013705,2]
[423550965,1780211448000,-174.47361809,0.00013705,2]
[423550969,1780211448000,-305.22779666,0.00013705,2]
[423550967,1780211448000,-180.65871923,0.00013705,2]
[423550968,1780211448000,-189.75337235,0.00013705,2]
[423550971,1780211448000,-163.44623556,0.00013705,2]
[423550972,1780211448000,-187.45333284,0.00013705,2]
[423550973,1780211448000,-163.62105479,0.00013705,2]
[423550970,1780211448000,-195.46338638,0.00013705,2]
[423550975,1780211448000,-175.16746345,0.00013705,2]
[423550977,1780211448000,-179.42340153,0.00013705,2]
[423550987,1780211448000,-168.48113944,0.00013828,2]
[423550976,1780211448000,-177.45363651,0.00013705,2]
[423551007,1780211448000,-189.28378031,0.00013828,2]
[423550966,1780211448000,-187.71101716,0.00013705,2]
[423551008,1780211448000,-179.20926234,0.00013832,2]
[423551044,1780211448000,-374.90666569,0.00014402,2]
[423551043,1780211448000,-326.89247113,0.00014402,2]
[423551039,1780211448000,-405.96955545,0.00014402,2]
[423551042,1780211448000,-390.92677276,0.00014402,2]
[423551045,1780211448000,-327.24210959,0.00014402,2]
[423551041,1780211448000,-610.45559332,0.00014402,2]
[423551046,1780211448000,-325.91298593,0.00014402,2]
[423551047,1780211448000,-350.33492691,0.00014402,2]
[423551048,1780211448000,-367.25569071,0.00014402,2]
[423551049,1780211448000,-2425.20263349,0.00014402,2]
[423551050,1780211448000,-354.90727303,0.00014402,2]
[423551051,1780211448000,-152.59084326,0.00014402,2]
[423551052,1780211448000,-671.7108317,0.00014402,2]
[423551054,1780211448000,-348.94723618,0.00014402,2]
[423551055,1780211448000,-358.84680306,0.00014402,2]
[423551057,1780211448000,-364.11780214,0.00014471,2]
[423551056,1780211448000,-303.72259688,0.00014409,2]
[423551058,1780211448000,-362.70810653,0.00014471,2]
[423551059,1780211448000,-322.62406265,0.00014471,2]
[423551063,1780211448000,-3593.26706756,0.0001452,2]
[423551061,1780211448000,-339.93220619,0.00014471,2]
[423551062,1780211448000,-429.36920921,0.00014471,2]
[423551065,1780211448000,-151.0,0.0001452,2]
[423551064,1780211448000,-151.0,0.0001452,2]
[423551006,1780211448000,-168.74632552,0.00013828,2]
[423551040,1780211448000,-379.50674471,0.00014402,2]
[423551030,1780211448000,-228.56933606,0.00014402,2]
[423551053,1780211448000,-330.09958165,0.00014402,2]
[423551034,1780211448000,-168.34351813,0.00014402,2]
[423551011,1780211448000,-160.0,0.000139,5]
[423551031,1780211448000,-313.49349727,0.00014402,2]
[423551009,1780211448000,-173.83323629,0.00013832,2]
[423551012,1780211448000,-954.59,0.00013972,2]
[423551013,1780211448000,-199.6146215,0.00014,2]
[423551014,1780211448000,-199.6146215,0.000141,2]
[423551015,1780211448000,-200.0,0.000141,2]
[423551018,1780211448000,-162.262873,0.00014372,2]
[423551016,1780211448000,-167.089315,0.0001423,2]
[423551021,1780211448000,-163.29390649,0.00014397,2]
[423551020,1780211448000,-439.27806409,0.00014396,2]
[423551017,1780211448000,-954.59,0.00014246,2]
[423551022,1780211448000,-354.77679742,0.00014402,2]
[423551019,1780211448000,-342.36032495,0.00014386,2]
[423551025,1780211448000,-354.81315881,0.00014402,2]
[423551033,1780211448000,-342.54356563,0.00014402,2]
[423551032,1780211448000,-353.0790529,0.00014402,2]
[423551035,1780211448000,-375.42203432,0.00014402,2]
[423551037,1780211448000,-361.31743846,0.00014402,2]
[423551029,1780211448000,-243.58613224,0.00014402,2]
[423551038,1780211448000,-193.84647082,0.00014402,2]
[423551036,1780211448000,-321.28390866,0.00014402,2]
[423551028,1780211448000,-1585.74127021,0.00014402,2]
[423551026,1780211448000,-397.8260426,0.00014402,2]
[423551024,1780211448000,-202.35535545,0.00014402,2]
[423551023,1780211448000,-1046.81437403,0.00014402,2]
[423551027,1780211448000,-194.17612498,0.00014402,2]
[423551113,1780211449000,-305.48353697,0.0001453,2]
[423551116,1780211449000,-432.08522476,0.0001453,2]
[423551114,1780211449000,-398.98835163,0.0001453,2]
[423551122,1780211449000,-325.23777528,0.0001453,2]
[423551110,1780211449000,-526.6322672,0.0001453,2]
[423551107,1780211449000,-355.62523796,0.0001453,2]
[423551111,1780211449000,-234.8918517,0.0001453,2]
[423551121,1780211449000,-560.5264594,0.0001453,2]
[423551109,1780211449000,-572.36144581,0.0001453,2]
[423551106,1780211449000,-317.11777956,0.0001453,2]
[423551117,1780211449000,-328.57163696,0.0001453,2]
[423551112,1780211449000,-330.85491721,0.0001453,2]
[423551115,1780211449000,-553.50395098,0.0001453,2]
[423551133,1780211449000,-325.82939177,0.00014534,2]
[423551118,1780211449000,-344.15431488,0.0001453,2]
[423551119,1780211449000,-301.46592485,0.0001453,2]
[423551123,1780211449000,-337.49265103,0.0001453,2]
[423551125,1780211449000,-151.0,0.0001453,2]
[423551124,1780211449000,-378.56756063,0.0001453,2]
[423551128,1780211449000,-151.0,0.0001453,2]
[423551126,1780211449000,-159.140078,0.0001453,2]
[423551127,1780211449000,-151.0,0.0001453,2]
[423551130,1780211449000,-151.0,0.0001453,2]
[423551132,1780211449000,-347.66647258,0.00014534,2]
[423551129,1780211449000,-151.0,0.0001453,2]
[423551134,1780211449000,-229.21480565,0.0001459,2]
[423551131,1780211449000,-358.41852467,0.00014534,2]
[423551108,1780211449000,-453.37290152,0.0001453,2]
[423551120,1780211449000,-329.58222163,0.0001453,2]
[423551105,1780211449000,-336.96227887,0.0001453,2]
[423551074,1780211449000,-411.842438,0.0001452,2]
[423551101,1780211449000,-954.82181724,0.0001452,2]
[423551073,1780211449000,-299.83279,0.0001452,2]
[423551076,1780211449000,-411.842438,0.0001452,2]
[423551077,1780211449000,-411.842438,0.0001452,2]
[423551075,1780211449000,-411.842438,0.0001452,2]
[423551135,1780211449000,-151.09,0.000147,2]
[423551079,1780211449000,-158.19497,0.0001452,2]
[423551080,1780211449000,-158.19497,0.0001452,2]
[423551078,1780211449000,-158.19497,0.0001452,2]
[423551082,1780211449000,-158.19497,0.0001452,2]
[423551081,1780211449000,-287.415613,0.0001452,2]
[423551084,1780211449000,-287.415613,0.0001452,2]
[423551083,1780211449000,-221.878297,0.0001452,2]
[423551086,1780211449000,-287.415613,0.0001452,2]
[423551096,1780211449000,-507.530791,0.0001452,2]
[423551103,1780211449000,-302.86145154,0.0001453,2]
[423551085,1780211449000,-221.878297,0.0001452,2]
[423551088,1780211449000,-287.415613,0.0001452,2]
[423551089,1780211449000,-221.878297,0.0001452,2]
[423551092,1780211449000,-151.0,0.0001452,2]
[423551090,1780211449000,-151.0,0.0001452,2]
[423551091,1780211449000,-151.0,0.0001452,2]
[423551093,1780211449000,-507.530791,0.0001452,2]
[423551095,1780211449000,-151.0,0.0001452,2]
[423551094,1780211449000,-151.0,0.0001452,2]
[423551097,1780211449000,-151.0,0.0001452,2]
[423551099,1780211449000,-205.356833,0.0001452,2]
[423551098,1780211449000,-507.530791,0.0001452,2]
[423551102,1780211449000,-234.78014424,0.0001453,2]
[423551100,1780211449000,-507.530791,0.0001452,2]
[423551104,1780211449000,-522.0668417,0.0001453,2]
[423551087,1780211449000,-221.878297,0.0001452,2]
[423551137,1780211449000,-513.54048743,0.00014851,2]
[423551159,1780211449000,-285.8062487,0.00014867,2]
[423551148,1780211449000,-388.35224995,0.00014867,2]
[423551170,1780211449000,-569.26011706,0.00014867,2]
[423551173,1780211449000,-490.33870669,0.00014867,2]
[423551175,1780211449000,-490.86316438,0.00014867,2]
[423551177,1780211449000,-525.50239036,0.00014867,2]
[423551176,1780211449000,-488.8694789,0.00014867,2]
[423551187,1780211449000,-538.27020459,0.00014867,2]
[423551147,1780211449000,-596.7390639,0.00014867,2]
[423551178,1780211449000,-3637.80395023,0.00014867,2]
[423551180,1780211449000,-532.36090954,0.00014867,2]
[423551186,1780211449000,-154.03653437,0.00014867,2]
[423551184,1780211449000,-175.65510022,0.00014867,2]
[423551182,1780211449000,-1007.56624755,0.00014867,2]
[423551183,1780211449000,-495.14937247,0.00014867,2]
[423551185,1780211449000,-523.42085427,0.00014867,2]
[423551181,1780211449000,-305.18168653,0.00014867,2]
[423551188,1780211449000,-455.58389532,0.00014874,2]
[423551190,1780211449000,-258.13289277,0.000149,2]
[423551189,1780211449000,-258.13289279,0.000149,2]
[423551191,1780211449000,-258.13289277,0.000149,2]
[423551192,1780211449000,-326.0859053,0.0001491,2]
[423551193,1780211449000,-326.0859054,0.0001491,2]